bitfinex/quotes_ETHUSD_20230113
["timestamp","ask_amount","ask_price","bid_price","bid_amount"]
[1673644090757,20.63518448,1423.9,1423.8,0.10829811]
[1673644091363,27.65814448,1423.9,1423.8,0.10829811]
[1673644091622,31.44888516,1423.9,1423.8,0.10829811]
[1673644091779,57.74488516,1423.9,1423.8,0.10829811]
[1673644091994,60.09081865,1423.9,1423.8,0.10829811]
[1673644092235,63.09081865,1423.9,1423.8,0.1082981]
[1673644094036,2.5,1423.8,1423.7,0.00235786]
[1673644094253,43.60168521,1423.8,1423.7,0.1082981]
[1673644094406,41.16768521,1423.8,1423.4,7.02536]
[1673644094616,1.18,1423.6,1423.4,7.08881867]
[1673644094826,1.096,1423.5,1423.4,0.06345867]
[1673644095191,1.096,1423.5,1423.3,14.05125]
[1673644095411,1.096,1423.5,1423.3,14.11470867]
[1673644095412,0.978,1423.5,1423.3,14.11470867]
[1673644095777,0.978,1423.5,1423.4,7.02543]
[1673644096026,0.978,1423.5,1423.4,7.08888867]
[1673644096631,0.978,1423.5,1423.4,0.06345867]
[1673644096845,1.1938,1423.5,1423.3,14.11470867]
[1673644097183,9.40089,1423.5,1423.3,0.06345867]
[1673644097503,16.49198,1423.5,1423.1,0.06345867]
[1673644097714,1.649198,1423.4,1423.0,9.67037063]
[1673644097874,14.05204,1423.3,1423.0,13.27670335]
[1673644098084,7.09203,1423.3,1423.0,0.32270185]
[1673644098432,7.09203,1423.3,1423.0,14.05468]
[1673644098433,8.31358815,1423.3,1423.0,14.05468]
[1673644098637,8.31358815,1423.3,1423.0,14.11813867]
[1673644098873,8.31358815,1423.3,1423.0,0.06345867]
[1673644098874,8.31347815,1423.3,1423.0,0.06345867]
[1673644099093,10.66809496,1423.3,1423.0,7.02739]
[1673644099240,3.64217496,1423.3,1423.0,14.11824867]
[1673644099448,3.57617496,1423.3,1423.0,21.14564867]
[1673644099658,0.066,1423.4,1423.0,22.19001745]
[1673644099883,4.18,1423.5,1423.0,23.74977429]
[1673644100103,4.18,1423.5,1423.0,22.44926063]
[1673644100320,4.18,1423.5,1423.0,24.00901747]
[1673644100498,4.182,1423.5,1423.0,28.03311919]
[1673644100724,4.18,1423.5,1423.0,28.03511919]
[1673644101134,4.18,1423.5,1423.1,2.5]
[1673644101351,4.18,1423.5,1423.2,21.07896]
[1673644101586,25.4829,1423.6,1423.2,24.74875139]
[1673644101925,25.4829,1423.6,1423.4,21.07629]
[1673644102259,8.7724,1423.6,1423.4,21.13974867]
[1673644102738,0.066,1423.6,1423.4,21.13974867]
[1673644102922,48.1151,1423.8,1423.4,21.13974867]
[1673644103132,23.85154189,1423.8,1423.4,21.13974867]
[1673644103386,24.90190746,1423.8,1423.4,21.13974867]
[1673644103864,23.85154189,1423.8,1423.4,21.13974867]
[1673644104281,17.78465815,1423.8,1423.4,21.13974867]
[1673644105173,16.60965815,1423.8,1423.5,2.5]
[1673644105335,16.60965815,1423.8,1423.6,28.09776]
[1673644105540,0.10555815,1423.8,1423.6,28.16121867]
[1673644105753,0.03955815,1423.8,1423.6,28.16121867]
[1673644106821,0.03955815,1423.8,1423.6,21.13677867]
[1673644109909,2.29612156,1423.9,1423.6,23.50045654]
[1673644111450,1.11812156,1423.9,1423.6,23.50045654]
[1673644114408,1.11812156,1423.9,1423.6,21.13677867]
[1673644114747,1.11812156,1423.9,1423.6,0.06345867]
[1673644114897,21.07185,1423.7,1423.4,7.63255867]
[1673644115112,1.178,1423.6,1423.4,0.06345867]
[1673644115321,1.0958,1423.5,1423.4,7.02523]
[1673644115578,1.0958,1423.5,1423.4,0.06345867]
[1673644115744,1.0958,1423.5,1423.3,21.14051867]
[1673644117554,0.1178,1423.5,1423.3,21.14051867]
[1673644117889,1.178,1423.6,1423.3,21.14051867]
[1673644120361,1.178,1423.6,1423.3,0.06345867]
[1673644120362,8.20251,1423.6,1423.3,0.06345867]
[1673644120613,16.40286,1423.4,1423.2,0.06345867]
[1673644120786,16.874126,1423.3,1423.0,1.10782745]
[1673644121158,23.966046,1423.3,1423.0,1.04436878]
[1673644121347,23.966046,1423.3,1422.9,3.7251114]
[1673644121576,22.784046,1423.3,1422.9,0.11728395]
[1673644121811,2.3966046,1423.2,1422.9,0.11728395]
[1673644122008,7.02691,1423.1,1422.9,0.11728395]
[1673644122298,0.066,1423.1,1422.9,0.11728395]
[1673644122525,10.6713646,1423.2,1422.9,0.11728395]
[1673644122677,0.066,1423.2,1422.9,7.27307762]
[1673644122885,4.640286,1423.3,1422.9,14.36443629]
[1673644122886,3.0,1423.3,1422.9,14.36443629]
[1673644123127,3.0,1423.2,1422.9,14.36443629]
[1673644123617,3.066,1423.3,1422.9,14.36443629]
[1673644123827,3.0,1423.3,1422.9,14.36443629]
[1673644124703,3.0,1423.3,1422.9,21.39233629]
[1673644124998,26.1386,1423.4,1423.0,2.13923363]
[1673644125199,26.1386,1423.4,1423.1,21.08043]
[1673644125452,26.1386,1423.4,1423.1,21.14388867]
[1673644125832,17.866,1423.4,1423.1,21.14388867]
[1673644129413,17.866,1423.4,1423.1,22.18825745]
[1673644129622,17.866,1423.4,1423.2,2.21882574]
[1673644129829,17.866,1423.4,1423.3,21.07776]
[1673644130199,0.066,1423.4,1423.3,21.14121867]
[1673644130506,3.0,1423.5,1423.3,21.14121867]
[1673644130650,3.066,1423.6,1423.3,21.14121867]
[1673644130866,3.0,1423.6,1423.3,21.14121867]
[1673644131338,3.0,1423.6,1423.3,24.17985511]
[1673644131507,26.3056,1423.7,1423.3,24.17985511]
[1673644131916,27.35596557,1423.7,1423.3,24.17985511]
[1673644132131,48.61369481,1423.7,1423.3,0.06345867]
[1673644132505,21.07499,1423.5,1423.2,0.06345867]
[1673644132706,21.07499,1423.5,1423.1,15.42063867]
[1673644132707,9.132939,1423.4,1423.1,15.42063867]
[1673644132865,9.132939,1423.4,1423.1,22.44733867]
[1673644132866,0.066,1423.4,1423.1,22.44733867]
[1673644133077,7.09093,1423.5,1423.1,29.47424867]
[1673644133299,14.11596,1423.5,1423.1,15.42063867]
[1673644133503,21.14099,1423.5,1423.1,15.42063867]
[1673644133867,22.99404485,1423.5,1423.1,0.06345867]
[1673644134023,22.99404485,1423.5,1423.0,21.14493867]
[1673644134222,21.94367928,1423.5,1423.0,21.14493867]
[1673644134439,22.99404485,1423.5,1423.0,21.14493867]
[1673644134695,22.99404485,1423.5,1423.0,21.32428501]
[1673644134696,23.47854928,1423.5,1423.0,21.32428501]
[1673644134887,11.66528656,1423.5,1423.0,26.63498325]
[1673644135099,8.6259,1423.5,1423.0,26.63498325]
[1673644137013,8.66545815,1423.5,1423.0,26.63498325]
[1673644138428,0.10555815,1423.5,1423.0,26.63498325]
[1673644138690,0.066,1423.6,1423.1,3.60633272]
[1673644138905,3.49682056,1423.6,1423.2,21.07851]
[1673644139229,3.49682056,1423.6,1423.2,21.14196867]
[1673644139612,3.49882056,1423.6,1423.2,21.13996867]
[1673644139818,30.36670087,1423.7,1423.2,21.14196867]
[1673644140034,3.0,1423.6,1423.2,21.21416545]
[1673644140430,3.0,1423.6,1423.2,21.21416551]
[1673644140568,3.0,1423.6,1423.2,21.21416554]
[1673644140976,3.0,1423.6,1423.2,21.21416557]
[1673644141240,3.0,1423.6,1423.2,24.64017304]
[1673644141426,3.0,1423.6,1423.2,24.64017305]
[1673644141782,3.0,1423.6,1423.2,24.64017307]
[1673644141984,3.0,1423.6,1423.2,24.64017309]
[1673644142470,3.0,1423.6,1423.2,24.6401731]
[1673644142616,3.0,1423.6,1423.2,24.64017314]
[1673644142946,3.0,1423.6,1423.3,2.46401731]
[1673644143083,3.0,1423.6,1423.4,14.05086]
[1673644143300,3.0,1423.6,1423.4,14.1865157]
[1673644143544,3.0,1423.6,1423.4,14.18651569]
[1673644143778,27.98352372,1423.7,1423.4,14.18651568]
[1673644143983,27.98352372,1423.7,1423.4,14.18651567]
[1673644144137,34.11345541,1423.7,1423.4,21.21194566]
[1673644144350,25.7116,1423.7,1423.4,21.21194562]
[1673644144616,17.6676,1423.7,1423.4,21.21194555]
[1673644144770,17.6676,1423.7,1423.5,2.12119455]
[1673644145033,17.6676,1423.7,1423.6,21.07332]
[1673644145222,1.044,1423.7,1423.6,0.13565535]
[1673644145437,0.978,1423.7,1423.6,0.07219667]
[1673644145651,15.0259,1423.7,1423.6,0.07219666]
[1673644145810,15.0919,1423.7,1423.6,0.07219666]
[1673644146030,8.06795,1423.7,1423.6,0.07219666]
[1673644146263,12.50322356,1423.7,1423.6,0.07219666]
[1673644147617,12.50322356,1423.7,1423.6,0.0699523]
[1673644149231,5.47927356,1423.7,1423.6,0.0699523]
[1673644150489,12.50322356,1423.7,1423.6,0.0699523]
[1673644150856,5.47927356,1423.7,1423.6,0.0699523]
[1673644151438,12.50322356,1423.7,1423.6,0.0699523]
[1673644151647,13.55358913,1423.7,1423.6,0.0699523]
[1673644151953,8.27236198,1423.7,1423.6,0.0699523]
[1673644152213,15.29631198,1423.7,1423.6,0.0699523]
[1673644152541,10.66641641,1423.7,1423.6,0.0699523]
[1673644152977,8.27236198,1423.7,1423.6,0.0699523]
[1673644153233,2.85908842,1423.7,1423.6,0.0699523]
[1673644153398,2.79308842,1423.7,1423.6,0.0699523]
[1673644153861,2.79308842,1423.7,1423.6,0.07219665]
[1673644154664,2.79308842,1423.7,1423.6,7.09663665]
[1673644154859,2.79308842,1423.7,1423.6,7.16009531]
[1673644155074,2.79308842,1423.7,1423.6,7.16009528]
[1673644155319,2.79308842,1423.7,1423.6,0.13565527]
[1673644155612,2.79308842,1423.7,1423.6,7.0966366]
[1673644155840,2.79308842,1423.7,1423.6,7.16009524]
[1673644156058,2.79308842,1423.7,1423.6,7.16009521]
[1673644156326,23.91827396,1423.8,1423.6,14.18453519]
[1673644156501,23.91827396,1423.8,1423.6,14.18453507]
[1673644156502,26.4202897,1423.8,1423.6,14.18453507]
[1673644156687,28.81431605,1423.8,1423.6,14.18453495]
[1673644156928,28.81431605,1423.8,1423.6,7.16009491]
[1673644157111,11.80951605,1423.8,1423.6,7.16009489]
[1673644157289,9.4154897,1423.8,1423.6,14.18453488]
[1673644157514,9.4154897,1423.8,1423.6,14.18453483]
[1673644157950,9.4154897,1423.8,1423.6,14.18453482]
[1673644158289,9.4154897,1423.8,1423.6,7.16009478]
[1673644158442,9.4154897,1423.8,1423.6,7.16009477]
[1673644158652,9.4154897,1423.8,1423.6,7.16009475]
[1673644158981,9.4154897,1423.8,1423.6,7.16009474]
[1673644159182,9.4154897,1423.8,1423.6,7.16009473]
[1673644160217,9.4154897,1423.8,1423.6,7.16009472]
[1673644160570,16.4390097,1423.8,1423.6,0.13565471]
[1673644160783,1.64390097,1423.7,1423.6,0.07219604]
[1673644160999,4.43693818,1423.7,1423.6,0.07219604]
[1673644162647,20.19002285,1423.7,1423.6,0.07219604]
[1673644162851,20.25602285,1423.7,1423.6,0.07219603]
[1673644163177,13.23207285,1423.7,1423.6,0.07219603]
[1673644163384,8.3108488,1423.7,1423.6,0.07219603]
[1673644163618,5.55529856,1423.7,1423.6,0.07219603]
[1673644164730,5.55529856,1423.7,1423.6,7.09663603]
[1673644165001,5.55529856,1423.7,1423.6,7.16009468]
[1673644165324,5.55529856,1423.7,1423.6,7.16009465]
[1673644165532,5.55529856,1423.7,1423.6,0.13565462]
[1673644165687,5.55529856,1423.7,1423.6,7.09663594]
[1673644165891,5.55529856,1423.7,1423.6,7.16009454]
[1673644166115,5.55529856,1423.7,1423.6,7.16009449]
[1673644166381,1.11736152,1423.7,1423.6,7.16009445]
[1673644166534,1.05136152,1423.7,1423.6,7.16009437]
[1673644166800,1.05136152,1423.7,1423.6,7.16009432]
[1673644166949,1.05136152,1423.7,1423.6,7.16009427]
[1673644167194,1.05136152,1423.7,1423.6,21.20897425]
[1673644167418,1.05136152,1423.7,1423.6,24.28232754]
[1673644167626,1.05136152,1423.7,1423.6,24.28232732]
[1673644167948,1.05136152,1423.7,1423.6,24.28232723]
[1673644168103,1.05136152,1423.7,1423.6,24.28232711]
[1673644168315,1.05136152,1423.7,1423.6,24.28232692]
[1673644168534,1.05136152,1423.7,1423.6,24.2823268]
[1673644168757,1.05136152,1423.7,1423.6,24.2823267]
[1673644168946,1.05136152,1423.7,1423.6,24.2823266]
[1673644169201,1.05136152,1423.7,1423.6,24.28232648]
[1673644169357,1.05136152,1423.7,1423.6,24.28232634]
[1673644169575,1.05136152,1423.7,1423.6,24.2823263]
[1673644169816,1.05136152,1423.7,1423.6,24.28232616]
[1673644170052,1.05136152,1423.7,1423.6,24.2823261]
[1673644170245,1.05136152,1423.7,1423.6,24.28232594]
[1673644170415,1.05136152,1423.7,1423.6,24.28232589]
[1673644170634,1.05136152,1423.7,1423.6,24.28232588]
[1673644170846,1.05136152,1423.7,1423.6,24.28232587]
[1673644171429,1.35136152,1423.7,1423.6,24.28232576]
[1673644171577,1.35136152,1423.7,1423.6,14.18453227]
[1673644171940,1.35136152,1423.7,1423.6,7.16009218]
[1673644172107,1.35136152,1423.7,1423.6,7.16009215]
[1673644172459,1.35136152,1423.7,1423.6,7.16009211]
[1673644172758,1.35136152,1423.7,1423.6,7.16009207]
[1673644172978,1.35136152,1423.7,1423.6,7.16009205]
[1673644173358,1.35136152,1423.7,1423.6,7.16009203]
[1673644174340,2.40272595,1423.7,1423.6,7.16009203]
[1673644174501,2.40272595,1423.7,1423.6,7.160092]
[1673644174718,2.40272595,1423.7,1423.6,7.16009199]
[1673644175059,2.40272595,1423.7,1423.6,14.18453199]
[1673644175262,1.35136152,1423.7,1423.6,7.16009197]
[1673644175486,1.35136152,1423.7,1423.6,7.16009196]
[1673644175697,1.35136152,1423.7,1423.6,7.16009195]
[1673644176006,2.40272595,1423.7,1423.6,7.16009194]
[1673644176343,4.14531366,1423.7,1423.6,7.16009192]
[1673644177171,4.14531366,1423.7,1423.6,0.13565191]
[1673644177362,4.14531366,1423.7,1423.6,7.09663324]
[1673644177564,4.14531366,1423.7,1423.6,7.16009189]
[1673644177808,4.14531366,1423.7,1423.6,7.16009186]
[1673644178319,4.14531366,1423.7,1423.6,7.16009182]
[1673644178939,4.14531366,1423.7,1423.6,7.16009181]
[1673644179136,4.14531366,1423.7,1423.6,6.77287214]
[1673644179345,4.14531366,1423.7,1423.6,6.77287213]
[1673644179757,4.14531366,1423.7,1423.6,6.77287212]
[1673644180176,4.14531366,1423.7,1423.6,13.79731212]
[1673644180425,4.14526521,1423.7,1423.6,13.79731207]
[1673644180662,4.14526521,1423.7,1423.6,20.82175199]
[1673644180808,4.14526521,1423.7,1423.6,20.82175192]
[1673644181018,4.14526521,1423.7,1423.6,20.82175189]
[1673644181224,4.14526521,1423.7,1423.6,20.82175188]
[1673644181481,4.14526521,1423.7,1423.6,20.82175186]
[1673644181692,4.14526521,1423.7,1423.6,20.8217518]
[1673644181910,4.14526521,1423.7,1423.6,20.82175175]
[1673644182086,4.14526521,1423.7,1423.6,20.82175169]
[1673644182288,4.14526521,1423.7,1423.6,20.82175168]
[1673644182511,4.14526521,1423.7,1423.6,20.82175166]
[1673644182866,4.14526521,1423.7,1423.6,20.82175157]
[1673644183034,4.14526521,1423.7,1423.6,20.82175153]
[1673644183265,4.14526521,1423.7,1423.6,20.82175152]
[1673644183434,4.14526521,1423.7,1423.6,20.82175151]
[1673644183850,4.14526521,1423.7,1423.6,20.82175148]
[1673644184065,4.14526521,1423.7,1423.6,20.82175147]
[1673644184334,4.14526521,1423.7,1423.6,20.82175144]
[1673644184491,4.14526521,1423.7,1423.6,20.8217514]
[1673644184696,4.14526521,1423.7,1423.6,20.82175138]
[1673644184913,4.14526521,1423.7,1423.6,20.82175137]
[1673644185150,4.14526521,1423.7,1423.6,20.82175135]
[1673644185343,4.14526521,1423.7,1423.6,20.82175134]
[1673644185563,4.14526521,1423.7,1423.6,20.82175133]
[1673644186171,4.14526521,1423.7,1423.6,20.82175132]
[1673644186421,4.14526521,1423.7,1423.6,20.8217513]
[1673644186634,4.14526521,1423.7,1423.6,0.13565095]
[1673644186635,4.72394676,1423.7,1423.6,0.13565095]
[1673644186842,6.299497,1423.7,1423.6,0.07219226]
[1673644187037,5.31413257,1423.7,1423.6,0.07219226]
[1673644187265,12.33808257,1423.7,1423.6,0.07219226]
[1673644188177,14.43307208,1423.7,1423.6,0.07219226]
[1673644188821,12.33808257,1423.7,1423.6,0.07219226]
[1673644189047,14.43307208,1423.7,1423.6,0.07219226]
[1673644189264,21.45702208,1423.7,1423.6,0.07219226]
[1673644189470,14.43307208,1423.7,1423.6,0.07219226]
[1673644190309,12.85752184,1423.7,1423.6,0.07219226]
[1673644190934,19.88147184,1423.7,1423.6,0.07219226]
[1673644191164,26.90542184,1423.7,1423.6,0.07219226]
[1673644191339,29.51416252,1423.7,1423.6,0.07219226]
[1673644191789,29.51416252,1423.7,1423.6,0.07219225]
[1673644192209,15.46626252,1423.7,1423.6,0.07219225]
[1673644192491,22.49021252,1423.7,1423.6,0.07219225]
[1673644193133,19.88147184,1423.7,1423.6,0.07219225]
[1673644193676,12.85752184,1423.7,1423.6,0.07219225]
[1673644194300,12.75752184,1423.7,1423.6,0.07219225]
[1673644194490,14.33572049,1423.7,1423.6,0.07219225]
[1673644194698,7.31177049,1423.7,1423.6,0.07219225]
[1673644195799,14.33572049,1423.7,1423.6,0.07219225]
[1673644195978,12.75752184,1423.7,1423.6,0.07219225]
[1673644199358,19.78147184,1423.7,1423.6,0.07219225]
[1673644199674,12.75752184,1423.7,1423.6,0.07219225]
[1673644200492,7.31136388,1423.7,1423.6,0.07219225]
[1673644201877,12.75752184,1423.7,1423.6,0.07219225]
[1673644202093,15.45086505,1423.7,1423.6,0.07219225]
[1673644202260,7.02543,1423.4,1423.1,17.99578867]
[1673644202524,2.69604698,1423.4,1423.1,7.09008867]
[1673644202680,2.63004698,1423.4,1423.1,7.09008867]
[1673644203050,11.39876958,1423.4,1423.1,7.09008867]
[1673644203360,12.60757226,1423.4,1423.1,7.09008867]
[1673644203570,5.58192226,1423.4,1423.1,14.11699867]
[1673644204096,4.00389407,1423.4,1423.1,14.11699867]
[1673644204354,3.93789407,1423.4,1423.1,14.11699867]
[1673644204932,10.96334407,1423.4,1423.1,14.11699867]
[1673644205102,11.02934407,1423.4,1423.1,14.11699867]
[1673644205553,4.00389407,1423.4,1423.1,14.11699867]
[1673644205772,3.93789407,1423.4,1423.1,14.11699867]
[1673644206568,10.96332407,1423.4,1423.1,14.11699867]
[1673644206779,11.02932407,1423.4,1423.1,14.11699867]
[1673644207552,1.10293241,1423.3,1423.1,7.09008867]
[1673644210622,1.10293241,1423.3,1423.1,0.06345867]
[1673644210923,1.10293241,1423.3,1423.0,21.3474158]
[1673644210924,8.12885241,1423.3,1423.0,21.3474158]
[1673644211140,8.19485241,1423.3,1423.0,21.3474158]
[1673644212387,8.19485241,1423.3,1423.0,21.14481867]
[1673644212575,1.16893241,1423.3,1423.0,21.14481867]
[1673644212790,1.10293241,1423.3,1423.0,21.34737907]
[1673644213193,2.99143343,1423.4,1423.0,22.39174785]
[1673644213407,2.92543343,1423.4,1423.0,21.34737907]
[1673644215660,14.00234316,1423.5,1423.0,21.34737907]
[1673644215853,10.02193443,1423.5,1423.1,1.181]
[1673644216184,8.96991564,1423.5,1423.2,23.57896]
[1673644216344,8.96991564,1423.5,1423.2,24.32106567]
[1673644218612,8.96991564,1423.5,1423.2,26.54743445]
[1673644218613,0.12561564,1423.5,1423.2,26.54743445]
[1673644218766,0.05961564,1423.5,1423.3,1.18]
[1673644219106,0.05961564,1423.5,1423.4,21.07629]
[1673644219323,0.05961564,1423.5,1423.4,24.31792867]
[1673644221809,0.05961564,1423.5,1423.4,17.29249867]
[1673644222025,0.05961564,1423.5,1423.4,21.13974867]
[1673644226991,0.05746204,1423.5,1423.4,21.13974867]
[1673644228116,0.05746204,1423.5,1423.4,21.25434905]
[1673644228600,0.05746204,1423.5,1423.4,21.13974867]
[1673644232270,0.05746204,1423.5,1423.4,27.92000722]
[1673644232435,0.05746204,1423.5,1423.4,33.5356247]
[1673644238229,0.05746204,1423.5,1423.4,33.5336247]
[1673644238441,0.05746204,1423.5,1423.4,33.5356247]
[1673644239825,0.05746204,1423.5,1423.4,32.49125592]
[1673644243594,0.05746204,1423.5,1423.4,28.8849232]
[1673644243932,0.05746204,1423.5,1423.4,8.27088867]
[1673644244127,0.05746204,1423.5,1423.4,15.29631867]
[1673644244483,0.05746204,1423.5,1423.4,22.32174867]
[1673644246327,0.05746204,1423.5,1423.4,21.13974867]
[1673644247049,8.00293,1423.5,1423.4,0.06345867]
[1673644247268,1.844293,1423.5,1423.2,11.91735867]
[1673644247575,1.778293,1423.5,1423.2,31.81456867]
[1673644247736,1.778293,1423.5,1423.2,21.14266867]
[1673644248383,0.978,1423.5,1423.2,21.14266867]
[1673644249416,10.98307694,1423.7,1423.2,21.14266867]
[1673644249622,10.98307694,1423.7,1423.3,0.22083683]
[1673644249892,10.98307694,1423.7,1423.4,21.07599]
[1673644250101,10.98307694,1423.7,1423.4,21.1868409]
[1673644250306,1.09830769,1423.6,1423.4,21.18684086]
[1673644250522,1.09830769,1423.6,1423.4,21.18684082]
[1673644250832,1.09830769,1423.6,1423.4,21.18684079]
[1673644251044,1.09830769,1423.6,1423.4,21.18684078]
[1673644251204,1.09830769,1423.6,1423.4,21.18684076]
[1673644251414,1.09830769,1423.6,1423.4,21.18684074]
[1673644251624,1.09830769,1423.6,1423.4,21.18684072]
[1673644251876,9.49807694,1423.7,1423.4,21.1868407]
[1673644252095,9.49807694,1423.7,1423.4,21.18684068]
[1673644252310,9.49807694,1423.7,1423.4,21.18684066]
[1673644252485,9.49807694,1423.7,1423.4,21.18684063]
[1673644252831,9.49807694,1423.7,1423.4,21.18684062]
[1673644253212,9.49807694,1423.7,1423.4,14.16151061]
[1673644253632,19.57194113,1423.7,1423.4,14.1615106]
[1673644253886,21.14996932,1423.7,1423.4,14.16151059]
[1673644254072,21.14996932,1423.7,1423.4,14.16151058]
[1673644254434,14.12601932,1423.7,1423.4,21.18694058]
[1673644254606,14.12601932,1423.7,1423.4,21.18694057]
[1673644254774,14.12601932,1423.7,1423.4,21.18694056]
[1673644255875,1.05201879,1423.6,1423.4,21.18694056]
[1673644256089,1.05201879,1423.6,1423.4,21.18694054]
[1673644256399,12.58400157,1423.6,1423.4,0.11085053]
[1673644256609,12.58400157,1423.6,1423.4,0.04739186]
[1673644256610,12.91985811,1423.6,1423.4,0.04739186]
[1673644256780,1.29198581,1423.5,1423.4,0.04739186]
[1673644258236,5.58764891,1423.6,1423.4,0.04739186]
[1673644258361,12.61209891,1423.6,1423.4,0.04739186]
[1673644258566,7.37436811,1423.6,1423.4,14.09806186]
[1673644258813,5.58764891,1423.6,1423.4,21.18695051]
[1673644259027,5.58764891,1423.6,1423.4,21.18695048]
[1673644259344,0.066,1423.6,1423.4,21.18695046]
[1673644259508,9.49807694,1423.7,1423.4,21.18695041]
[1673644259716,9.49807694,1423.7,1423.4,21.18695039]
[1673644259921,3.51861078,1423.6,1423.4,14.16152037]
[1673644260167,2.00182648,1423.6,1423.4,14.16152035]
[1673644260344,2.00182648,1423.6,1423.4,7.13609034]
[1673644260552,2.00182648,1423.6,1423.4,0.11085033]
[1673644260797,16.05096648,1423.6,1423.4,0.04739166]
[1673644261038,1.60509665,1423.5,1423.4,0.04739166]
[1673644261346,18.22383581,1423.5,1423.4,0.04739166]
[1673644261563,25.31476581,1423.5,1423.4,0.04739166]
[1673644262079,25.31476581,1423.5,1423.4,0.04480444]
[1673644262305,27.10468211,1423.5,1423.4,0.04480444]
[1673644262606,25.31476581,1423.5,1423.4,0.04480444]
[1673644262783,27.10474521,1423.5,1423.4,0.04480444]
[1673644262990,25.31476581,1423.5,1423.4,0.04480444]
[1673644263229,27.10476753,1423.5,1423.4,0.04480444]
[1673644264359,20.07983753,1423.5,1423.4,0.04480444]
[1673644264652,18.28983581,1423.5,1423.4,0.04480444]
[1673644264880,11.26490581,1423.5,1423.4,0.04480444]
[1673644265112,4.23997581,1423.5,1423.4,0.04480444]
[1673644265322,4.17397581,1423.5,1423.4,7.07023444]
[1673644265601,4.17397581,1423.5,1423.4,14.15912311]
[1673644265832,18.90422648,1423.6,1423.4,21.18714031]
[1673644266030,16.61832217,1423.5,1423.4,0.11085027]
[1673644266260,16.61832217,1423.5,1423.4,0.0473916]
[1673644266261,16.68432217,1423.5,1423.4,0.0473916]
[1673644266569,16.68413024,1423.5,1423.4,0.0473916]
[1673644266776,16.72368839,1423.5,1423.4,0.0473916]
[1673644267032,22.97137239,1423.5,1423.4,0.0473916]
[1673644267449,24.54940058,1423.5,1423.4,0.0473916]
[1673644268565,31.57433058,1423.5,1423.4,0.0473916]
[1673644269337,32.00631179,1423.5,1423.4,0.0473916]
[1673644269568,37.9466821,1423.5,1423.4,0.0473916]
[1673644269861,37.7166821,1423.5,1423.4,0.0473916]
[1673644270181,46.1547821,1423.5,1423.4,0.0473916]
[1673644270772,46.3847821,1423.5,1423.4,0.0473916]
[1673644270964,46.38346769,1423.5,1423.4,0.0473916]
[1673644271205,44.80675391,1423.5,1423.4,0.0473916]
[1673644271430,47.86843559,1423.5,1423.4,0.0473916]
[1673644272138,45.764398,1423.5,1423.4,0.0473916]
[1673644272333,47.86843559,1423.5,1423.4,0.0473916]
[1673644272539,53.45140262,1423.5,1423.4,0.0473916]
[1673644272913,53.45140262,1423.5,1422.9,7.78184262]
[1673644272914,0.01762233,1423.3,1422.9,7.78184262]
[1673644273080,1.484,1423.0,1422.9,0.18074262]
[1673644273275,8.5114,1423.0,1422.9,0.11728395]
[1673644273592,1.55,1423.0,1422.9,0.11728395]
[1673644273843,10.071855,1423.0,1422.9,0.11728395]
[1673644274037,10.137855,1423.0,1422.9,0.11728395]
[1673644274799,10.137855,1423.0,1422.9,0.06728395]
[1673644275838,17.165255,1423.0,1422.9,0.06728395]
[1673644276793,17.20481315,1423.0,1422.9,0.06728395]
[1673644277322,18.68981315,1423.0,1422.9,0.06728395]
[1673644277632,11.66241315,1423.0,1422.9,0.06728395]
[1673644277844,29.32354587,1423.0,1422.9,0.06728395]
[1673644279171,4.63501315,1423.0,1422.9,0.06728395]
[1673644279509,4.56901315,1423.0,1422.9,7.09518395]
[1673644279710,4.56901315,1423.0,1422.9,7.15864262]
[1673644279711,3.00855815,1423.0,1422.9,7.15864262]
[1673644279917,3.00855815,1423.0,1422.9,0.13074262]
[1673644280115,3.00855815,1423.0,1422.9,0.06728395]
[1673644280325,20.66969087,1423.0,1422.9,0.06728395]
[1673644280535,30.76309087,1423.0,1422.9,0.06728395]
[1673644280748,40.16474268,1423.0,1422.9,0.06728395]
[1673644281276,40.16474268,1423.0,1422.8,0.11728395]
[1673644281277,2.5,1422.9,1422.8,0.11728395]
[1673644281613,37.91963444,1422.9,1422.8,0.11728395]
[1673644281799,37.98563444,1422.9,1422.8,0.11728395]
[1673644282010,63.56963444,1422.9,1422.8,0.11728395]
[1673644282214,66.85481852,1422.9,1422.8,0.11728395]
[1673644284262,6.727,1422.8,1422.7,0.12143636]
[1673644284441,2.5,1422.7,1422.6,0.11934581]
[1673644284691,2.5,1422.7,1422.5,0.1373071]
[1673644284692,55.91757444,1422.7,1422.5,0.1373071]
[1673644284872,15.67212092,1422.6,1422.5,0.1373071]
[1673644285202,39.82626092,1422.6,1422.5,0.1373071]
[1673644285358,35.2966592,1422.6,1422.5,0.1373071]
[1673644287464,34.6966592,1422.6,1422.5,0.1373071]
[1673644287671,39.26581907,1422.6,1422.5,0.1373071]
[1673644288256,43.49281907,1422.6,1422.5,0.1373071]
[1673644288571,4.40718648,1422.6,1422.5,0.1373071]
[1673644288723,0.066,1422.7,1422.5,0.1373071]
[1673644289138,17.66451272,1422.7,1422.5,0.1373071]
[1673644289301,3.60633272,1422.6,1422.5,0.1373071]
[1673644289460,23.37969444,1422.6,1422.5,0.1373071]
[1673644289785,24.48918016,1422.6,1422.5,0.1373071]
[1673644290218,27.71918016,1422.6,1422.5,0.1373071]
[1673644290718,34.74856016,1422.6,1422.5,0.1373071]
[1673644291506,39.27816188,1422.6,1422.5,0.1373071]
[1673644291670,44.69016188,1422.6,1422.5,0.1373071]
[1673644291877,6.76655815,1422.5,1422.4,0.08367558]
[1673644292135,58.58434189,1422.5,1422.4,0.08367558]
[1673644292603,74.81524189,1422.5,1422.4,0.08367558]
[1673644293293,70.28564017,1422.5,1422.4,0.08367558]
[1673644293516,74.81524189,1422.5,1422.4,0.08367558]
[1673644293987,67.78564017,1422.5,1422.4,0.08367558]
[1673644294198,27.24647202,1422.5,1422.4,0.08367558]
[1673644294658,11.01557202,1422.5,1422.4,0.08367558]
[1673644296036,3.066,1422.5,1422.4,1.06267558]
[1673644296267,0.066,1422.6,1422.4,8.09304558]
[1673644296569,0.066,1422.7,1422.4,8.15650425]
[1673644296777,72.69565408,1422.9,1422.4,16.8360752]
[1673644296778,83.16408408,1422.9,1422.4,16.8360752]
[1673644297115,3.60633272,1422.8,1422.4,16.8360752]
[1673644297831,47.8667,1422.9,1422.6,7.02928]
[1673644297976,0.066,1422.9,1422.6,1.24245867]
[1673644298190,21.09344,1423.0,1422.6,1.179]
[1673644298395,29.16689019,1423.0,1422.6,1.179]
[1673644299086,3.0,1422.9,1422.6,1.179]
[1673644299453,3.0,1422.9,1422.5,8.27802867]
[1673644299872,10.02791,1422.9,1422.5,8.27802867]